bitfinex-derivatives/quotes_SOLF0:USTF0_20260217
["timestamp","ask_amount","ask_price","bid_price","bid_amount"]
[1771353541758,5.48908494,84.903,84.833,5.61550338]
[1771353541954,5.48908494,84.903,84.83,5.9424414]
[1771353541955,5.48908494,84.903,84.835,5.61550338]
[1771353542259,5.48908494,84.903,84.845,5.61550338]
[1771353542459,5.48908494,84.903,84.847,5.61550338]
[1771353543256,5.48908494,84.901,84.84,5.61550338]
[1771353543459,5.48908494,84.901,84.835,84.5]
[1771353543957,16.09828494,84.879,84.826,90.19550338]
[1771353544152,5.48908494,84.9,84.841,5.61550338]
[1771353544352,5.48908494,84.9,84.853,10.6123]
[1771353544561,5.48908494,84.9,84.84,90.6624414]
[1771353544562,5.48908494,84.899,84.84,84.72]
[1771353544755,5.48908494,84.899,84.825,5.61550338]
[1771353545661,5.48908494,84.875,84.825,5.61550338]
[1771353545957,2.00086141,84.87,84.821,5.61550338]
[1771353546564,5.48908494,84.878,84.831,5.61550338]
[1771353546757,2.00086141,84.88,84.831,5.61550338]
[1771353547063,2.00086141,84.89,84.831,5.61550338]
[1771353547258,5.48908494,84.889,84.84,2.00086141]
[1771353547459,10.6092,84.879,84.84,2.00086141]
[1771353547655,10.6092,84.879,84.831,5.61550338]
[1771353548453,10.6107,84.867,84.831,5.61550338]
[1771353548859,2.00086141,84.86,84.821,84.96]
[1771353549659,12.61246141,84.86,84.821,84.96]
[1771353549857,10.6116,84.86,84.821,84.96]
[1771353550060,5.48908494,84.869,84.821,84.96]
[1771353550061,5.48908494,84.869,84.821,90.57550338]
[1771353550258,10.6106,84.868,84.823,10.6161]
[1771353550560,2.00086141,84.88,84.83,2.00086141]
[1771353550760,2.00086141,84.88,84.83,7.61636479]
[1771353551165,10.6096,84.875,84.83,7.61636479]
[1771353551466,2.00086141,84.88,84.831,5.61550338]
[1771353552064,10.6097,84.875,84.831,5.61550338]
[1771353554560,10.6086,84.883,84.841,5.65713575]
[1771353555470,6.01709603,84.899,84.851,5.65713575]
[1771353556069,10.6076,84.892,84.851,5.65713575]
[1771353556369,6.01709603,84.899,84.851,5.65713575]
[1771353557367,6.01709603,84.899,84.86,2.00027068]
[1771353557563,16.62369603,84.899,84.86,2.00027068]
[1771353564969,10.6075,84.893,84.86,2.00027068]
[1771353565177,6.01709603,84.892,84.852,91.12]
[1771353565671,10.6068,84.898,84.86,2.00027068]
[1771353566574,16.62389603,84.898,84.86,2.00027068]
[1771353568576,10.6071,84.895,84.853,5.65713575]
[1771353571070,6.01709603,84.894,84.853,5.65713575]
[1771353572470,10.6074,84.893,84.853,5.65713575]
[1771353573575,16.62479603,84.891,84.853,5.65713575]
[1771353573879,6.01709603,84.89,84.853,5.65713575]
[1771353574383,6.01709603,84.879,84.844,95.36]
[1771353575281,6.01709603,84.879,84.838,5.65713575]
[1771353575580,6.01709603,84.879,84.84,2.00027068]
[1771353576278,16.62619603,84.879,84.84,2.00027068]
[1771353578479,10.6091,84.879,84.85,2.00027068]
[1771353580581,10.6091,84.879,84.841,5.65713575]
[1771353580883,10.6091,84.879,84.85,2.00027068]
[1771353581880,16.62489603,84.89,84.851,5.65713575]
[1771353582184,10.6078,84.89,84.851,5.65713575]
[1771353587790,16.66598938,84.89,84.851,5.65713575]
[1771353588794,6.05818938,84.899,84.86,2.00027068]
[1771353589385,10.96447672,84.939,84.844,14.11258466]
[1771353589386,6.05818938,84.889,84.847,10.57770598]
[1771353589591,6.05818938,84.889,84.844,101.88]
[1771353590786,10.6099,84.873,84.844,101.88]
[1771353591290,6.05818938,84.877,84.844,101.88]
[1771353591595,6.05818938,84.89,84.851,5.61751028]
[1771353591799,10.6067,84.899,84.86,2.00027068]
[1771353592091,6.05818938,84.898,84.86,2.00027068]
[1771353592685,6.05818938,84.898,84.852,108.61751028]
[1771353593283,10.6081,84.888,84.852,108.61751028]
[1771353593483,10.6081,84.888,84.852,5.61751028]
[1771353594093,5.70912829,84.909,84.861,6.00198858]
[1771353595900,10.607,84.896,84.861,6.00198858]
[1771353596300,10.6054,84.909,84.871,6.00198858]
[1771353596496,5.70912829,84.909,84.862,10.57770598]
[1771353597695,5.70912829,84.909,84.863,6.00198858]
[1771353597899,5.70912829,84.909,84.87,2.00027068]
[1771353598498,5.70912829,84.909,84.866,6.00198858]
[1771353598697,21.2028,84.941,84.871,6.00198858]
[1771353598698,5.70912829,84.921,84.871,6.00198858]
[1771353598900,5.70912829,84.919,84.871,6.00198858]
[1771353599095,5.70912829,84.919,84.881,6.00198858]
[1771353600598,5.70912829,84.919,84.858,21.16856695]
[1771353600599,2.00027068,84.95,84.902,6.00198858]
[1771353600803,5.70912829,84.929,84.88,16.11285534]
[1771353600997,5.70912829,84.926,84.88,2.00027068]
[1771353601196,5.70912829,84.926,84.881,6.00198858]
[1771353601398,5.70912829,84.926,84.89,2.00027068]
[1771353601601,5.70912829,84.926,84.883,6.00198858]
[1771353602194,10.6023,84.934,84.891,6.00198858]
[1771353602398,5.70912829,84.959,84.901,6.00198858]
[1771353602799,10.6013,84.942,84.901,6.00198858]
[1771353603607,10.6021,84.935,84.901,6.00198858]
[1771353604992,5.70912829,84.929,84.88,2.00027068]
[1771353605399,5.70912829,84.929,84.876,6.00198858]
[1771353605799,10.6036,84.923,84.881,6.00198858]
[1771353606508,16.31382829,84.915,84.871,92.4]
[1771353607105,16.31382829,84.915,84.872,6.00198858]
[1771353607508,5.70912829,84.944,84.891,6.00198858]
[1771353607808,5.70912829,84.959,84.91,2.00027068]
[1771353608208,10.6005,84.949,84.91,2.00027068]
[1771353609709,10.96447672,85.023,84.94,2.00027068]
[1771353609905,10.96447672,85.023,84.879,21.16856695]
[1771353609906,10.95791756,85.084,85.01,2.00027068]
[1771353610102,14.61055675,85.099,85.01,2.00027068]
[1771353610410,12.58197068,85.1,85.05,2.00027068]
[1771353611206,2.04575315,85.126,85.05,2.00027068]
[1771353611508,2.00027068,85.09,85.027,6.00198858]
[1771353611709,10.5844,85.078,85.027,6.00198858]
[1771353612016,2.41038277,85.086,85.027,6.00198858]
[1771353612507,5.92589897,85.1,85.027,6.00198858]
[1771353612711,2.87128211,85.099,85.031,6.00198858]
[1771353612913,2.87128211,85.099,85.034,6.00198858]
[1771353613115,2.87128211,85.117,85.036,6.00198858]
[1771353613311,2.87128211,85.117,85.038,6.00198858]
[1771353613808,2.87336896,85.112,85.038,6.00198858]
[1771353614010,2.87336896,85.112,85.051,6.00198858]
[1771353614809,2.96928935,85.129,85.051,6.00198858]
[1771353615206,2.96928935,85.177,85.092,5.67469942]
[1771353615424,2.96928935,85.177,85.05,5.92589897]
[1771353615425,2.96928935,85.177,85.101,5.67469942]
[1771353615612,2.96928935,85.177,85.103,5.67469942]
[1771353615812,2.96928935,85.177,85.105,5.67469942]
[1771353616013,2.2188882,85.199,85.125,5.67469942]
[1771353616211,2.2188882,85.199,85.141,5.67469942]
[1771353616516,2.2188882,85.199,85.142,5.67469942]
[1771353616713,1.42924674,85.209,85.142,5.67469942]
[1771353617018,19.31292695,85.213,85.056,164.6877]
[1771353617019,1.42924674,85.199,85.124,5.67469942]
[1771353617218,19.31292695,85.213,85.141,5.67469942]
[1771353617420,19.31292695,85.213,85.143,5.67469942]
[1771353617713,0.69886763,85.209,85.143,5.67469942]
[1771353619019,10.5683,85.207,85.143,5.67469942]
[1771353619421,19.31292695,85.213,85.143,5.67469942]
[1771353619622,5.92589897,85.2,85.125,5.67469942]
[1771353619815,19.31292695,85.213,85.125,5.67469942]
[1771353620025,5.92589897,85.2,85.125,5.67469942]
[1771353620220,5.92589897,85.18,85.125,5.67469942]
[1771353620521,74.08,85.192,85.105,5.67469942]
[1771353620728,16.49639897,85.19,85.105,5.67469942]
[1771353621321,5.92589897,85.19,85.105,5.67469942]
[1771353621723,5.92589897,85.17,85.105,5.67469942]
[1771353622031,10.5732,85.168,85.071,5.67469942]
[1771353622218,10.5732,85.168,85.08,5.67469942]
[1771353623626,5.92589897,85.15,85.08,5.67469942]
[1771353624329,5.92589897,85.13,85.08,5.67469942]
[1771353624924,5.92589897,85.13,85.065,5.67469942]
[1771353625226,164.4331,85.188,85.065,5.67469942]
[1771353625227,10.5756,85.149,85.066,10.5857]
[1771353625430,10.5756,85.149,85.071,5.67469942]
[1771353625925,10.5772,85.136,85.071,5.67469942]
[1771353626126,10.5772,85.136,85.039,10.5891]
[1771353626127,74.04,85.147,85.061,5.67469942]
[1771353626435,5.92589897,85.14,85.061,5.67469942]
[1771353626728,10.577,85.137,85.061,5.67469942]
[1771353628229,10.5784,85.126,85.061,5.67469942]
[1771353628428,5.92589897,85.14,85.063,5.67469942]
[1771353629130,10.5783,85.127,85.063,5.67469942]
[1771353629527,5.92589897,85.17,85.081,5.67469942]
[1771353629731,5.92589897,85.13,85.024,5.67469942]
[1771353629937,493.1193,85.219,85.03,5.67469942]
[1771353629938,5.92589897,85.11,85.03,5.67469942]
[1771353630121,5.92589897,85.14,85.041,5.67469942]
[1771353630321,5.92589897,85.14,85.061,5.67469942]
[1771353630529,5.92589897,85.16,85.073,5.67469942]
[1771353631431,5.92589897,85.16,85.062,78.66]
[1771353631432,10.5765,85.141,85.075,5.67469942]
[1771353632426,10.5752,85.152,85.075,5.67469942]
[1771353632633,5.92589897,85.16,85.027,164.7427]
[1771353632634,5.92589897,85.16,85.081,5.67469942]
[1771353633531,5.92589897,85.18,85.102,5.67469942]
[1771353633729,5.92589897,85.2,85.12,5.92589897]
[1771353633933,5.92589897,85.2,85.121,5.67469942]
[1771353634134,5.92589897,85.22,85.123,5.67469942]
[1771353634428,10.5668,85.219,85.141,5.67469942]
[1771353635037,5.92589897,85.22,85.145,5.67469942]
[1771353635038,10.5677,85.212,85.145,5.67469942]
[1771353635230,5.92589897,85.22,85.145,5.67469942]
[1771353635430,5.92589897,85.22,85.156,5.67469942]
[1771353635631,189.41818604,85.236,85.156,5.67469942]
[1771353635936,5.9878341,85.249,85.157,10.5744]
[1771353636238,5.9878341,85.249,85.16,5.92589897]
[1771353636531,5.9878341,85.249,85.18,5.92589897]
[1771353636737,5.9878341,85.249,85.2,5.92589897]
[1771353637128,5.9878341,85.249,85.185,10.571]
[1771353637328,5.9878341,85.249,85.17,5.92589897]
[1771353638631,5.9878341,85.249,85.184,10.571]
[1771353638840,164.1521,85.334,85.152,74.02]
[1771353638841,5.9878341,85.27,85.21,5.92589897]
[1771353639232,5.9878341,85.27,85.209,10.5679]
[1771353639529,5.9878341,85.27,85.21,5.92589897]
[1771353639731,5.9878341,85.259,85.194,101.34]
[1771353641136,5.9878341,85.259,85.19,5.92589897]
[1771353641445,5.9878341,85.259,85.172,91.28]
[1771353641635,5.9878341,85.247,85.17,5.92589897]
[1771353641840,5.9878341,85.259,85.19,5.92589897]
[1771353642242,5.92589897,85.26,85.19,5.92589897]
[1771353642243,5.9878341,85.258,85.19,5.92589897]
[1771353642846,5.9878341,85.253,85.18,105.2316]
[1771353643551,5.9878341,85.253,85.191,10.5702]
[1771353644247,5.9878341,85.253,85.181,10.5715]
[1771353645049,4.41776606,85.239,85.17,10.5728]
[1771353645744,4.41776606,85.237,85.18,10.5715]
[1771353645948,4.41776606,85.237,85.126,164.5515]
[1771353645949,4.41776606,85.237,85.17,5.92589897]
[1771353646845,4.431803,85.236,85.17,5.92589897]
[1771353647646,4.431803,85.234,85.171,10.5727]
[1771353648043,4.431803,85.234,85.15,5.92589897]
[1771353648244,10.35770197,85.27,85.19,5.92589897]
[1771353648450,4.431803,85.269,85.19,5.92589897]
[1771353648956,4.431803,85.269,85.22,10.5667]
[1771353649149,4.48578109,85.289,85.22,10.5667]
[1771353649345,4.48578109,85.289,85.21,5.92589897]
[1771353649653,164.1416,85.34,85.2,80.7]
[1771353649654,4.48578109,85.308,85.24,5.92589897]
[1771353650151,4.48578109,85.305,85.24,5.92589897]
[1771353650552,4.48578109,85.305,85.2,27.06419897]
[1771353650750,4.48960146,85.299,85.201,78.94302026]
[1771353650951,4.48960146,85.299,85.22,5.92589897]
[1771353651154,460.058,85.383,85.24,5.92589897]
[1771353651155,4.48960146,85.319,85.24,5.92589897]
[1771353651754,4.48960146,85.312,85.255,10.5623]
[1771353651958,4.48960146,85.312,85.24,5.92589897]
[1771353652252,10.5542,85.321,85.261,10.5615]
[1771353652448,4.48960146,85.32,85.24,5.92589897]
[1771353652850,2.04026594,85.357,85.231,73.94]
[1771353652851,4.50553025,85.338,85.241,5.01633227]
[1771353653049,5.92589897,85.32,85.242,5.01633227]
[1771353653244,4.50553025,85.319,85.24,5.92589897]
[1771353653448,4.50553025,85.319,85.241,82.86506695]
[1771353653646,4.50553025,85.337,85.26,5.92589897]
[1771353653856,4.50553025,85.337,85.243,73.92]
[1771353654060,4.50553025,85.377,85.25,5.92589897]
[1771353654360,4.50553025,85.359,85.28,5.92589897]
[1771353654548,4.50553025,85.359,85.31,10.5554]
[1771353654749,4.50553025,85.359,85.28,5.92589897]
[1771353654950,10.5486,85.367,85.3,5.92589897]
[1771353655253,5.92589897,85.38,85.29,5.92589897]
[1771353655254,4.51643394,85.376,85.29,5.92589897]
[1771353655460,4.51643394,85.376,85.291,5.02656736]
[1771353655652,4.51643394,85.376,85.307,10.5559]
[1771353656249,4.51643394,85.376,85.31,5.92589897]
[1771353656649,4.51643394,85.376,85.23,164.3506]
[1771353656957,4.559356,85.369,85.29,5.92589897]
[1771353657145,4.559356,85.369,85.291,5.01224264]
[1771353657451,4.559356,85.365,85.29,5.92589897]
[1771353657656,4.559356,85.365,85.291,5.01198308]
[1771353657858,4.559356,85.365,85.29,5.92589897]
[1771353658359,4.559356,85.365,85.26,73.9]
[1771353658360,4.559356,85.384,85.317,10.5546]
[1771353658759,4.53630713,85.374,85.306,10.5559]
[1771353659356,4.53630713,85.374,85.3,5.92589897]
[1771353659861,10.5492,85.362,85.301,10.5566]
[1771353660062,4.53630713,85.374,85.3,5.92589897]
[1771353660759,4.53974349,85.351,85.289,10.558]
[1771353660956,4.53974349,85.351,85.27,5.92589897]
[1771353661353,164.0276,85.399,85.25,5.92589897]
[1771353661354,4.53974349,85.339,85.25,5.92589897]
[1771353661661,4.53974349,85.339,85.199,10.23672632]
[1771353661662,4.53974349,85.339,85.27,5.92589897]
[1771353661852,15.09164349,85.339,85.28,10.5591]
[1771353662052,5.92589897,85.35,85.27,5.92589897]
[1771353662257,4.53974349,85.349,85.27,5.92589897]
[1771353662464,15.09054349,85.349,85.289,10.5581]
[1771353662661,4.53691802,85.348,85.27,5.92589897]
[1771353663055,10.5529,85.332,85.27,5.92589897]
[1771353663264,5.92589897,85.33,85.25,5.92589897]
[1771353663562,10.5535,85.327,85.267,10.5608]
[1771353663865,4.53691802,85.329,85.25,5.92589897]
[1771353664458,10.5559,85.307,85.25,5.92589897]
[1771353664659,164.0787,85.372,85.221,109.25]
[1771353664660,2.03908241,85.407,85.239,493.0006]
[1771353664955,655.4638,85.483,85.239,493.0006]
[1771353664956,4.62905071,85.406,85.354,10.55]
[1771353665261,2.03867627,85.447,85.32,5.92589897]
[1771353665455,4.62905071,85.389,85.323,10.5539]
[1771353666163,4.62905071,85.389,85.333,10.5526]
[1771353666356,4.62905071,85.406,85.32,5.92589897]
[1771353667164,4.62905071,85.406,85.355,10.5498]
[1771353667361,4.62905071,85.406,85.32,5.92589897]
[1771353667556,5.92589897,85.39,85.331,10.5528]
[1771353667768,5.19029452,85.389,85.331,10.5528]
[1771353668167,5.19029452,85.389,85.343,10.5514]
[1771353668667,5.19029452,85.389,85.33,10.553]
[1771353669064,5.25092284,85.379,85.29,5.92589897]
[1771353669365,5.25092284,85.377,85.29,5.92589897]
[1771353669570,5.25092284,85.359,85.27,5.92589897]
[1771353669870,5.92589897,85.37,85.28,5.92589897]
[1771353670063,5.25092284,85.359,85.28,5.92589897]
[1771353670369,5.25092284,85.359,85.292,10.5577]
[1771353671267,5.92589897,85.4,85.25,5.92589897]
[1771353671268,5.2261891,85.334,85.25,5.92589897]
[1771353671472,5.2261891,85.334,85.221,101.8]
[1771353671473,5.2261891,85.334,85.223,164.3635]
[1771353671765,5.92589897,85.35,85.26,5.92589897]
[1771353671965,79.76589897,85.35,85.26,5.92589897]
[1771353672162,5.92589897,85.35,85.26,5.92589897]
[1771353672362,5.92589897,85.35,85.29,10.5579]
[1771353673874,5.2261891,85.355,85.301,10.5566]
[1771353675370,5.14161983,85.39,85.31,5.88615633]
[1771353675765,5.14161983,85.379,85.31,5.88615633]
[1771353675965,5.14161983,85.368,85.295,10.5573]
[1771353676972,10.5485,85.367,85.304,10.5562]
[1771353677865,5.14161983,85.368,85.304,10.5562]
[1771353678879,10.549,85.363,85.294,10.5575]
[1771353679576,5.14161983,85.368,85.29,5.88615633]
[1771353680274,5.14161983,85.368,85.268,100.6]
[1771353680275,5.14161983,85.368,85.31,5.88615633]
[1771353680466,5.14161983,85.368,85.321,10.554]
[1771353680666,5.88615633,85.39,85.31,5.88615633]
[1771353680667,5.13871553,85.39,85.31,5.88615633]
[1771353680869,5.13871553,85.388,85.31,5.88615633]
[1771353681579,10.5468,85.381,85.327,10.5533]
[1771353681772,5.13871553,85.388,85.327,10.5533]
[1771353682878,5.14017357,85.386,85.327,10.5533]
[1771353683184,5.14017357,85.386,85.31,5.88615633]
[1771353683780,10.5463,85.385,85.326,10.5535]
[1771353684084,5.14017357,85.384,85.326,10.5535]
[1771353684679,5.14277659,85.372,85.29,5.88615633]
[1771353685184,5.14277659,85.37,85.29,5.88615633]
[1771353685783,5.14277659,85.389,85.3,5.88615633]
[1771353685970,5.14277659,85.389,85.33,5.88615633]
[1771353686173,10.5462,85.386,85.33,10.5529]
[1771353686371,5.14277659,85.389,85.296,99.0]
[1771353686582,5.14277659,85.387,85.3,5.88615633]
[1771353686779,5.16433279,85.385,85.3,5.88615633]
[1771353687181,5.16433279,85.383,85.3,5.88615633]
[1771353687683,73.82,85.384,85.3,5.88615633]
[1771353687684,10.5491,85.362,85.304,10.5561]
[1771353687887,5.16433279,85.362,85.27,10.18615936]
[1771353688085,5.16433279,85.36,85.27,5.88615633]
[1771353688288,5.16433279,85.358,85.288,10.5582]
[1771353688493,5.16433279,85.358,85.27,5.88615633]
[1771353688685,78.99902274,85.357,85.27,5.88615633]
[1771353688887,5.17902274,85.356,85.27,5.88615633]
[1771353689088,10.5509,85.348,85.299,10.5569]
[1771353689287,5.17902274,85.347,85.271,10.18615936]
[1771353689483,5.17902274,85.347,85.27,5.88615633]
[1771353689688,10.5522,85.337,85.288,10.5581]
[1771353690499,15.73002274,85.347,85.288,10.5581]
[1771353690987,15.73002274,85.347,85.299,10.5568]
[1771353691190,5.17902274,85.347,85.275,10.18615936]
[1771353691382,5.11729222,85.364,85.29,5.88615633]
[1771353691587,5.11729222,85.364,85.291,10.18615936]
[1771353691793,5.11729222,85.364,85.29,5.88615633]
[1771353692283,5.11729222,85.364,85.293,10.18615936]
[1771353692688,10.549,85.363,85.314,10.555]
[1771353693188,10.549,85.363,85.29,5.88615633]
[1771353693189,10.5499,85.356,85.306,10.5559]
[1771353693389,5.88615633,85.4,85.29,5.88615633]
[1771353693390,5.12446521,85.379,85.303,10.18615936]
[1771353693696,5.12446521,85.377,85.308,10.18615936]
[1771353693895,10.549,85.363,85.312,10.5552]
[1771353694592,10.549,85.363,85.319,10.5543]
[1771353695794,5.13519199,85.371,85.319,10.5543]
[1771353696699,10.5484,85.368,85.319,10.5543]
[1771353696898,73.82,85.379,85.312,10.18615936]
[1771353696899,5.13594889,85.367,85.312,10.18615936]
[1771353697096,5.13594889,85.359,85.296,10.18615936]
[1771353697297,5.13594889,85.359,85.297,10.18615936]
[1771353697499,5.13594889,85.348,85.299,10.5568]
[1771353697797,5.13594889,85.348,85.306,10.18615936]
[1771353698095,5.13594889,85.348,85.305,10.18615936]
[1771353698297,5.13594889,85.348,85.307,10.18615936]
[1771353699191,5.13594889,85.348,85.305,20.74215936]
[1771353699394,5.13594889,85.348,85.307,10.18615936]
[1771353699592,10.5511,85.346,85.299,10.47490336]
[1771353699791,5.13594889,85.348,85.299,10.47490336]
[1771353700599,5.13594889,85.348,85.294,10.47490336]
[1771353701094,5.13221427,85.331,85.288,10.47490336]
[1771353701399,5.13221427,85.349,85.276,10.47490336]
[1771353701600,5.88615633,85.35,85.286,10.5584]
[1771353701601,10.5527,85.333,85.286,10.5584]
[1771353701995,73.82,85.347,85.277,10.47490336]
[1771353702301,10.5547,85.317,85.276,10.47490336]
[1771353702496,5.13221427,85.327,85.263,10.47490336]
[1771353702699,5.13761431,85.346,85.27,5.88615633]
[1771353702904,5.13761431,85.346,85.276,10.47490336]
[1771353703195,10.5517,85.341,85.293,10.5575]
[1771353703899,10.5517,85.341,85.285,10.5585]
[1771353704100,10.5517,85.341,85.284,10.47490336]
[1771353704301,10.5517,85.341,85.283,10.47490336]
[1771353705001,10.5517,85.341,85.276,10.47490336]
[1771353705703,10.5526,85.334,85.276,10.47490336]
[1771353705899,5.22090552,85.333,85.27,5.88615633]
[1771353706700,10.5543,85.32,85.271,10.5603]
[1771353708802,10.5552,85.313,85.262,10.5614]
[1771353709002,5.1942508,85.316,85.262,10.5614]
[1771353710701,10.5561,85.305,85.262,10.5614]
[1771353711204,10.5561,85.305,85.254,10.5623]
[1771353711404,10.5561,85.305,85.258,10.47490336]
[1771353711805,10.5553,85.312,85.258,10.47490336]
[1771353712198,10.5553,85.312,85.259,10.47490336]
[1771353712600,10.5561,85.306,85.265,10.561]
[1771353712800,5.1942508,85.316,85.258,10.47490336]
[1771353713104,73.84,85.337,85.258,10.47490336]
[1771353713298,73.84,85.341,85.271,10.47490336]
[1771353713697,5.18411822,85.337,85.25,5.88615633]
[1771353714006,5.18411822,85.337,85.263,10.47135076]
[1771353714307,5.18411822,85.337,85.275,10.5598]
[1771353715810,10.5548,85.316,85.275,10.5598]
[1771353716709,10.5556,85.31,85.265,10.561]
[1771353718411,10.5563,85.304,85.258,10.5619]
[1771353719108,5.19174807,85.31,85.251,10.47135076]
[1771353719310,5.19209217,85.309,85.239,10.47135076]
[1771353719509,5.19209217,85.309,85.195,27.92360202]
[1771353719510,5.19209217,85.289,85.221,10.47135076]
[1771353719714,5.19209217,85.289,85.21,13.60447624]
[1771353719715,10.5587,85.285,85.239,10.5642]
[1771353719920,5.19209217,85.289,85.233,10.47135076]
[1771353720710,5.19209217,85.289,85.251,10.5627]
[1771353721108,5.19209217,85.289,85.243,10.5637]
[1771353722211,5.19209217,85.289,85.235,10.5648]
[1771353723413,5.12866091,85.281,85.228,10.5656]
[1771353723713,5.12866091,85.281,85.196,20.91507106]
[1771353723714,5.12866091,85.281,85.207,10.47135076]
[1771353724213,5.12866091,85.281,85.205,10.47135076]
[1771353724411,10.5605,85.27,85.22,10.5666]
[1771353724713,5.12866091,85.269,85.22,10.5666]
[1771353724916,5.12866091,85.269,85.196,10.47135076]
[1771353725112,5.11956746,85.267,85.212,10.5676]
[1771353725302,5.11956746,85.267,85.192,91.96]
[1771353725708,5.11956746,85.255,85.192,91.96]
[1771353726212,10.566,85.225,85.172,10.5726]
[1771353726514,5.11956746,85.227,85.161,10.47135076]
[1771353726914,5.11956746,85.227,85.16,5.88615633]
[1771353727309,10.5681,85.209,85.152,10.5751]
[1771353727508,5.88615633,85.23,85.152,10.5751]
[1771353727509,5.13456402,85.208,85.152,10.5751]
[1771353728109,5.13456402,85.208,85.14,5.88615633]
[1771353728110,5.13456402,85.205,85.14,5.88615633]
[1771353728616,5.13456402,85.205,85.12,5.88615633]
[1771353728819,5.15064035,85.183,85.096,10.47135076]
[1771353729205,5.15064035,85.183,85.09,10.47135076]
[1771353729408,5.15064035,85.159,85.09,5.88615633]
[1771353729814,73.88,85.19,85.1,5.88615633]
[1771353730005,5.15064035,85.167,85.1,5.88615633]
[1771353730214,5.15064035,85.167,85.087,91.88]
[1771353730408,5.15064035,85.167,85.111,10.5801]
[1771353731018,10.96972768,85.19,85.12,5.88615633]
[1771353731213,5.08357135,85.176,85.1,5.88615633]
[1771353732720,5.00138854,85.173,85.102,10.5812]
[1771353733512,5.00138854,85.173,85.112,10.58]
[1771353733720,5.00138854,85.159,85.06,5.88615633]
[1771353733922,5.00138854,85.149,85.06,5.91833744]
[1771353734109,5.00138854,85.204,85.06,5.91833744]
[1771353734314,5.00138854,85.179,85.09,5.91833744]
[1771353734621,5.00138854,85.177,85.09,5.91833744]
[1771353735219,5.00138854,85.177,85.072,91.42]
[1771353735418,5.00138854,85.177,85.09,5.91833744]
[1771353735724,4.97499107,85.175,85.113,10.5798]
[1771353736210,4.97499107,85.171,85.113,10.5798]
[1771353738624,79.85833744,85.18,85.09,5.91833744]
[1771353738625,4.99530551,85.169,85.09,5.91833744]
[1771353739418,4.99492926,85.159,85.09,5.91833744]
[1771353739621,10.575,85.153,85.098,10.5817]
[1771353739923,4.99492926,85.152,85.098,10.5817]
[1771353740721,4.99492926,85.152,85.09,5.91833744]
[1771353740921,4.99758169,85.15,85.063,90.9]
[1771353741121,4.99758169,85.15,85.08,5.91833744]
[1771353742422,10.5764,85.142,85.09,10.5828]
[1771353742617,10.5764,85.142,85.011,234.74]
[1771353742618,5.00124494,85.139,85.04,5.91833744]
[1771353742824,5.00124494,85.119,85.04,5.91833744]
[1771353743227,5.00124494,85.116,85.04,5.91833744]
[1771353743425,5.91833744,85.1,85.03,5.91833744]
[1771353743618,5.00124494,85.099,85.03,5.91833744]
[1771353743819,5.00124494,85.096,85.038,10.5892]
[1771353744024,5.00124494,85.096,85.03,5.91833744]
[1771353744422,5.00124494,85.096,85.01,5.91833744]
[1771353745325,4.94467097,85.094,85.03,5.91833744]
[1771353746830,4.94467097,85.094,85.046,10.5882]
[1771353748221,4.94467097,85.094,85.054,10.5873]
[1771353749728,4.94638392,85.109,85.054,10.5873]
[1771353749934,4.94638392,85.109,85.069,10.5854]
[1771353751234,5.91833744,85.12,85.069,10.5854]
[1771353751530,15.5282731,85.126,85.05,5.91833744]
[1771353751531,4.9498731,85.126,85.05,5.91833744]
[1771353752735,4.9498731,85.126,85.08,10.584]
[1771353753542,21.1448,85.174,85.035,21.1793]
[1771353753543,4.95795659,85.142,85.09,10.5827]
[1771353754533,4.95795659,85.139,85.07,5.91833744]
[1771353754732,4.9582846,85.129,85.051,90.16]
[1771353755138,4.9582846,85.129,85.087,10.5831]
[1771353756442,4.9582846,85.149,85.06,5.91833744]
[1771353757742,10.5773,85.135,85.086,10.5832]
[1771353758043,4.9582846,85.149,85.086,10.5832]
[1771353759449,4.94917495,85.141,85.091,10.5826]
[1771353759641,4.94917495,85.141,85.06,5.91833744]
[1771353760250,4.94917495,85.141,85.092,10.5825]
[1771353761741,4.94418222,85.132,85.06,5.91833744]
[1771353762444,4.94418222,85.124,85.075,10.5846]
[1771353763444,4.9439336,85.121,85.075,10.5846]
[1771353764050,4.9439336,85.121,85.059,89.56]
[1771353764241,4.9439336,85.139,85.07,5.91833744]
[1771353765144,4.9439336,85.139,85.095,10.5822]
[1771353765649,4.9439336,85.139,85.07,5.91833744]
[1771353766643,4.9490833,85.129,85.059,89.56]
[1771353767043,4.94718533,85.119,85.034,21.1796]
[1771353767238,4.94718533,85.119,85.05,5.91833744]
[1771353767638,15.52658533,85.118,85.073,10.5849]